fUSD/lending_fUSD_20240514
["ID","MTS","AMOUNT","RATE_DAILY","PERIOD"]
[327019414,1715719025866,-991618.62386197,0.0004889,30]
[327019415,1715719025890,-15000.0,0.0004897,30]
[327019416,1715719025916,-769.26940471,0.00048989,120]
[327019417,1715719025939,-15000.0,0.00048999,30]
[327019418,1715719025965,-50000.0,0.00049,39]
[327019419,1715719025987,-733.8268726,0.00049,30]
[327019420,1715719026010,-1599.99999801,0.00049,30]
[327019421,1715719026033,-1000.0,0.00049,120]
[327019422,1715719026057,-1000.0,0.00049,120]
[327019423,1715719026080,-275.49569865,0.00049,120]
[327019424,1715719026103,-3000.0,0.00049,120]
[327019425,1715719026125,-402.01158745,0.00049,60]
[327019426,1715719026147,-1000.0,0.00049,120]
[327019427,1715719026170,-1000.0,0.00049,120]
[327019428,1715719026194,-1000.0,0.00049,120]
[327019429,1715719026217,-1000.0,0.00049,120]
[327019430,1715719026239,-1000.0,0.00049,120]
[327019431,1715719026261,-1000.0,0.00049,120]
[327019432,1715719026285,-1000.0,0.00049,120]
[327019433,1715719026309,-1000.0,0.00049,120]
[327019434,1715719026331,-4142.33999451,0.00049,120]
[327019435,1715719026355,-769.26940471,0.00049004,120]
[327019436,1715719026378,-2126.87654586,0.00049034,120]
[327019437,1715719026401,-3000.0,0.00049041,120]
[327019438,1715719026424,-769.26940471,0.00049052,120]
[327019439,1715719026447,-2126.87654586,0.00049056,120]
[327019440,1715719026469,-2126.87654586,0.00049069,120]
[327019441,1715719026492,-151.0,0.00049123,120]
[327019442,1715719026514,-1002.0,0.000493,30]
[327019443,1715719026536,-10000.0,0.000493,30]
[327019444,1715719026559,-531.0,0.000493,39]
[327019445,1715719026582,-513.29425212,0.0004931,120]
[327019446,1715719026604,-300.0,0.00049315,30]
[327019447,1715719026627,-300.0,0.00049315,30]
[327019448,1715719026649,-300.0,0.00049315,30]
[327019449,1715719026675,-300.0,0.00049315,30]
[327019450,1715719026698,-300.0,0.00049315,30]
[327019451,1715719026720,-300.0,0.00049315,30]
[327019452,1715719026744,-300.0,0.00049315,30]
[327019453,1715719026767,-300.0,0.00049315,30]
[327019454,1715719026788,-300.0,0.00049315,30]
[327019455,1715719026811,-300.0,0.00049315,30]
[327019456,1715719026839,-207.0,0.00049315,30]
[327019457,1715719026863,-1035.0,0.00049315,30]
[327019458,1715719026884,-1035.0,0.00049315,30]
[327019459,1715719026909,-268.8,0.00049315,60]
[327019460,1715719026931,-200.0,0.00049315,30]
[327019461,1715719026953,-5122.16590607,0.0004942,31]
[327019462,1715719026976,-250.0,0.0004948,60]
[327019463,1715719027000,-163.46610441,0.000495,120]
[327019464,1715719027021,-2958.07092849,0.000495,120]
[327019465,1715719027044,-298.04,0.00049588,120]
[327019466,1715719027067,-8805.98,0.00049589,31]
[327019467,1715719027089,-353629.82415868,0.00049589,120]
[327019468,1715719027112,-687.95262437,0.00049589,120]
[327019469,1715719027135,-706.2593521,0.00049589,120]
[327019470,1715719027158,-339039.76169906,0.00049589,120]
[327019471,1715719032827,-18038.06381799,0.00048316,40]
[327019472,1715719032852,-3112.0,0.00049589,120]
[327019473,1715719032877,-216.0,0.00049589,120]
[327019474,1715719032901,-2100.0,0.00049589,30]
[327019475,1715719032925,-1100585.55852356,0.00049589,120]
[327019476,1715719032948,-513.81340101,0.00049589,120]
[327019477,1715719032971,-499572.08445014,0.00049589,120]
[327019478,1715719032993,-321.96133285,0.000496,120]
[327019479,1715719033016,-151.0,0.00049616,120]
[327019480,1715719033039,-15335.19899715,0.0004978,30]
[327019481,1715719033062,-1075.33911082,0.000498,30]
[327019482,1715719033084,-324777.0,0.000498,45]
[327019483,1715719033106,-500000.0,0.000498,60]
[327019484,1715719033131,-531.0,0.000498,40]
[327019485,1715719033156,-151.0,0.00049808,120]
[327019486,1715719033180,-8805.98,0.00049863,32]
[327019487,1715719033204,-3000.0,0.00049863,120]
[327019488,1715719033228,-15000.0,0.0004987,30]
[327019489,1715719033251,-406.0,0.00049886,120]
[327019490,1715719033274,-1011.0,0.000499,30]
[327019491,1715719033298,-1000.0,0.00049999,120]
[327019492,1715719033325,-20265.67593505,0.00049999,90]
[327019493,1715719033354,-50000.0,0.0005,40]
[327019494,1715719033378,-1000.0,0.0005,120]
[327019495,1715719033402,-40408.32291858,0.0005,30]
[327019496,1715719033426,-500.0,0.0005,120]
[327019497,1715719033449,-200.0,0.0005,120]
[327019498,1715719033473,-150.0,0.0005,120]
[327019499,1715719033496,-1502.52294099,0.0005,60]
[327019500,1715719033518,-1355.79590479,0.0005,120]
[327019501,1715719033541,-560.0,0.0005,120]
[327019502,1715719033564,-1000.0,0.0005,120]
[327019503,1715719033586,-1000.0,0.0005,120]
[327019504,1715719033610,-1000.0,0.0005,120]
[327019505,1715719033633,-1015.0,0.0005,120]
[327019506,1715719033657,-1000.0,0.0005,50]
[327019507,1715719033680,-1000.0,0.0005,50]
[327019508,1715719033702,-1000.0,0.0005,50]
[327019509,1715719033725,-1000.0,0.0005,50]
[327019510,1715719033748,-1000.0,0.0005,50]
[327019511,1715719033772,-1000.0,0.0005,50]
[327019512,1715719033795,-1000.0,0.0005,50]
[327019513,1715719033820,-1000.0,0.0005,50]
[327019514,1715719033852,-1000.0,0.0005,50]
[327019515,1715719033873,-1000.0,0.0005,50]
[327019516,1715719033896,-3005.38535295,0.0005,30]
[327019517,1715719033918,-10000.0,0.0005,120]
[327019518,1715719033940,-5000.0,0.0005,120]
[327019519,1715719033962,-8923.82656396,0.0005,120]
[327019520,1715719033984,-450.0,0.0005,120]
[327019521,1715719034008,-589.59310903,0.0005,30]
[327019522,1715719034031,-16840.0,0.0005,120]
[327019523,1715719034057,-2259.220669,0.0005,120]
[327019524,1715719034080,-499.99442519,0.0005,120]
[327019525,1715719034102,-1390.65965359,0.0005,120]
[327019526,1715719034125,-2000.0,0.0005,50]
[327019527,1715719034148,-2000.0,0.0005,50]
[327019528,1715719034171,-209.68580264,0.0005,120]
[327019529,1715719034194,-200.0,0.0005,120]
[327019530,1715719034216,-1045.0,0.0005,120]
[327019531,1715719034239,-502.64922382,0.0005,120]
[327019532,1715719034262,-231.45900792,0.0005,120]
[327019533,1715719034286,-10432.0,0.0005,120]
[327019534,1715719034309,-419.0,0.0005,120]
[327019535,1715719034334,-1664.65190113,0.0005,120]
[327019536,1715719034357,-19527.93151211,0.0005,120]
[327019537,1715719034379,-6530.15720515,0.0005,30]
[327019538,1715719034402,-24475.0,0.0005,120]
[327019539,1715719034425,-891.396489,0.00050081,120]
[327019540,1715719034448,-8805.98,0.00050136,33]
[327019541,1715719034479,-531.0,0.000503,40]
[327019542,1715719034510,-6686.4,0.00050306,117]
[327019543,1715719034536,-8805.98,0.0005041,34]
[327019544,1715719034566,-151.0,0.00050493,120]
[327019545,1715719034595,-521.46,0.000505,120]
[327019546,1715719034621,-500.0,0.000506,120]
[327019547,1715719034649,-8805.98,0.00050684,35]
[327019548,1715719034680,-93016.207369,0.00050684,30]
[327019549,1715719034710,-8512.484939,0.00050684,30]
[327019550,1715719034738,-3000.0,0.00050684,120]
[327019551,1715719034765,-500.0,0.000507,120]
[327019552,1715719034796,-151.0,0.00050767,120]
[327019553,1715719034828,-500.0,0.000508,120]
[327019554,1715719034852,-500000.0,0.000508,60]
[327019555,1715719034880,-531.0,0.000508,40]
[327019556,1715719034908,-500.0,0.000509,120]
[327019557,1715719034936,-1225.433048,0.000509,30]
[327019558,1715719034965,-8805.98,0.00050958,36]
[327019559,1715719034996,-1000.0,0.00050999,120]
[327019560,1715719035023,-3000.0,0.00051,120]
[327019561,1715719035048,-159.1949031,0.00051,30]
[327019562,1715719035074,-500.0,0.00051,30]
[327019563,1715719035101,-3015.04885229,0.00051,120]
[327019564,1715719035129,-4333.49214243,0.00051,30]
[327019565,1715719035155,-1404.08657679,0.00051128,120]
[327019566,1715719035182,-151.0,0.00051178,120]
[327019567,1715719035210,-8805.98,0.00051232,37]
[327019568,1715719035236,-531.0,0.000513,40]
[327019569,1715719035262,-2500.0,0.0005149,60]
[327019570,1715719035290,-8805.98,0.00051506,38]
[327019571,1715719035318,-3000.0,0.00051506,120]
[327019572,1715719035347,-1000.0,0.000517,120]
[327019573,1715719035373,-8805.98,0.0005178,39]
[327019574,1715719035404,-1035.0,0.00051781,30]
[327019575,1715719035429,-1035.0,0.00051781,30]
[327019576,1715719035455,-93016.207369,0.000518,30]
[327019577,1715719035481,-1000.0,0.000518,90]
[327019578,1715719035510,-8512.484939,0.000518,30]
[327019579,1715719035536,-531.0,0.000518,40]
[327019580,1715719035562,-665.49,0.00051836,90]
[327019581,1715719035590,-151.0,0.00051863,120]
[327019582,1715719035617,-151.0,0.00051918,120]
[327019583,1715719035642,-1102.4,0.0005195,75]
[327019584,1715719035669,-1000.0,0.00051999,120]
[327019585,1715719035699,-50000.0,0.00052,52]
[327019586,1715719035724,-3044.0,0.00052,30]
[327019587,1715719035750,-382265.40813646,0.00052,120]
[327019588,1715719035776,-500.0,0.00052,120]
[327019589,1715719035802,-1000.0,0.00052,30]
[327019590,1715719035829,-1061.63241121,0.00052,120]
[327019591,1715719035856,-24243.51057393,0.00052,120]
[327019592,1715719035883,-458.51905779,0.00052,120]
[327019593,1715719035909,-21071.0,0.00052,30]
[327019594,1715719035936,-2525.0,0.00052,120]
[327019595,1715719035963,-5000.0,0.00052,30]
[327019596,1715719035990,-8805.98,0.00052054,40]
[327019597,1715719036017,-200.23563724,0.00052055,30]
[327019598,1715719036043,-3190.73,0.00052055,62]
[327019599,1715719036227,161.0,0.00049589,120]
[327019600,1715719036374,2500.0,0.00045,120]
[327019601,1715719037290,215.64477092,0.00047158,30]
[327019602,1715719037548,379.01955908,0.0004,30]
[327019603,1715719040076,516.05092025,0.00047158,30]
[327019604,1715719040328,207.77106734,0.00052054,120]
[327019605,1715719040626,168.0019056,0.00041413,30]
[327019606,1715719040756,5863.25440605,0.00052054,120]
[327019607,1715719042318,166.86871381,0.00044648,30]
[327019608,1715719042767,180.90306348,0.00044688,30]
[327019609,1715719043479,166.6666667,0.00042598,30]
[327019610,1715719043564,161.57645653,0.00045891,30]
[327019611,1715719045055,166.66666666,0.00040715,30]
[327019612,1715719045569,166.6666667,0.00043062,30]
[327019613,1715719045871,166.66666666,0.00041445,30]
[327019614,1715719046423,166.66666666,0.00044149,30]
[327019615,1715719046493,157.15908436,0.00044023,30]
[327019616,1715719046972,178.0,0.00049,90]
[327019617,1715719047041,166.66666666,0.00044741,30]
[327019618,1715719047108,157.15908445,0.00044267,30]
[327019619,1715719047166,166.83499667,0.00042062,30]
[327019620,1715719047689,166.6666667,0.00045376,30]
[327019621,1715719047717,179.0,0.00051563,120]
[327019622,1715719047775,166.83499667,0.00045724,30]
[327019623,1715719047973,167.81751752,0.0004105,30]
[327019624,1715719048282,159.73933863,0.0004576,30]
[327019625,1715719048412,167.81751752,0.00044284,30]
[327019626,1715719048446,155.49398156,0.00042277,30]
[327019627,1715719048948,167.81751757,0.00045717,30]
[327019628,1715719049312,177.86223129,0.00044542,30]
[327019629,1715719049459,170.99320416,0.00040805,30]
[327019630,1715719049914,1150.04468094,0.00048,90]
[327019631,1715719050240,151.52583475,0.00040627,30]
[327019632,1715719051148,164.94754175,0.0004185,30]
[327019633,1715719051185,170.39606108,0.00043106,30]
[327019634,1715719051605,154.46457135,0.00040864,30]
[327019635,1715719051887,170.39606108,0.00045459,30]
[327019636,1715719051916,233.0621517,0.00044823,30]
[327019637,1715719052180,166.6666667,0.00044228,30]
[327019638,1715719052209,215.59461942,0.00040077,30]
[327019639,1715719052242,258.04084443,0.00047158,60]
[327019640,1715719052271,169.00998558,0.00043287,30]
[327019641,1715719052299,156.14122187,0.00045767,30]
[327019642,1715719052398,153.21424556,0.00045254,30]
[327019643,1715719052580,154.46457135,0.00041292,30]
[327019644,1715719052688,215.59461942,0.00040679,30]
[327019645,1715719052721,262.7216759,0.00040273,30]
[327019646,1715719052874,998.11810411,0.000356,30]
[327019647,1715719052913,153.21424556,0.00045716,30]
[327019648,1715719052978,40416.23130503,0.0005,30]
[327019649,1715719053094,154.46457135,0.00041819,30]
[327019650,1715719053122,166.66666666,0.0004134,30]
[327019651,1715719053149,153.87487061,0.00040025,30]
[327019652,1715719053266,215.59461942,0.00040717,30]
[327019653,1715719053589,154.46457135,0.00042731,30]
[327019654,1715719053616,166.6666667,0.00044246,30]
[327019655,1715719053643,153.87487061,0.00041165,30]
[327019656,1715719053924,607.44428426,0.00040741,30]
[327019657,1715719054145,153.87487061,0.00042243,30]
[327019658,1715719054297,2500.0,0.00045,120]
[327019659,1715719054326,215.59461942,0.00041493,30]
[327019660,1715719054428,607.44428426,0.0004083,30]
[327019661,1715719054611,154.46457135,0.00042905,30]
[327019662,1715719054695,153.87487061,0.0004301,30]
[327019663,1715719054800,215.59461942,0.00041874,30]
[327019664,1715719054942,607.44428426,0.00040918,30]
[327019665,1715719055128,154.46457135,0.00043066,30]
[327019666,1715719055174,153.87487061,0.00044145,30]
[327019667,1715719055314,215.59461942,0.00042268,30]
[327019668,1715719055448,607.44428426,0.00041993,30]
[327019669,1715719055640,154.46457135,0.00044777,30]
[327019670,1715719055715,153.8748708,0.00045241,30]
[327019671,1715719055747,1296.8412156,0.0004069,30]
[327019672,1715719055824,215.59461942,0.00043857,30]
[327019673,1715719055923,215.64477092,0.00047158,30]
[327019674,1715719056005,163.73836529,0.00043168,30]
[327019675,1715719056113,607.44428426,0.00043799,30]
[327019676,1715719056140,154.46457135,0.00044854,30]
[327019677,1715719056223,1296.8412156,0.00040697,30]
[327019678,1715719056353,215.59461942,0.00044891,30]
[327019679,1715719056646,154.46457135,0.00045617,30]
[327019680,1715719056765,607.44428426,0.00044666,30]
[327019681,1715719056866,215.59461942,0.00045425,30]
[327019682,1715719056899,1296.8412156,0.00041017,30]
[327019683,1715719057151,154.46457141,0.0004598,30]
[327019684,1715719057269,607.44428426,0.00045575,30]
[327019685,1715719057364,215.59461971,0.0004622,30]
[327019686,1715719057402,1296.8412156,0.00041773,30]
[327019687,1715719057547,195.17964919,0.0004,120]
[327019688,1715719057582,884.35603427,0.000389,30]
[327019689,1715719057997,607.44428427,0.00046318,30]
[327019690,1715719058026,1296.8412156,0.00042096,30]
[327019691,1715719058061,309.92896682,0.00040068,30]
[327019692,1715719058438,1296.8412156,0.00042316,30]
[327019693,1715719058483,309.92896682,0.00040881,30]
[327019694,1715719058544,157.36756573,0.0004084,30]
[327019695,1715719058986,1296.8412156,0.00042502,30]
[327019696,1715719059049,309.92896682,0.00041079,30]
[327019697,1715719059079,157.36756573,0.00042672,30]
[327019698,1715719059495,338.2489042,0.00041096,30]
[327019699,1715719059553,1296.8412156,0.00043541,30]
[327019700,1715719059582,157.36756573,0.00043864,30]
[327019701,1715719059613,309.92896682,0.00041178,30]
[327019702,1715719060049,1296.8412156,0.00043703,30]
[327019703,1715719060085,309.92896682,0.00042443,30]
[327019704,1715719060114,157.36756573,0.0004503,30]
[327019705,1715719060252,397.52768955,0.00045,30]
[327019706,1715719060282,338.2489042,0.00041106,30]
[327019707,1715719060592,1296.84121588,0.00044847,30]
[327019708,1715719060621,309.92896682,0.00044178,30]
[327019709,1715719060737,158.93982317,0.00042485,30]
[327019710,1715719060875,338.2489042,0.00041824,30]
[327019711,1715719061138,309.92896682,0.00044324,30]
[327019712,1715719061373,338.2489042,0.00043163,30]
[327019713,1715719061656,309.92896702,0.00045387,30]
[327019714,1715719061891,338.2489042,0.00043416,30]
[327019715,1715719062038,516.05092025,0.00047158,30]
[327019716,1715719062412,338.2489042,0.00043823,30]
[327019717,1715719062548,201.34910331,0.00041156,30]
[327019718,1715719063062,201.34910331,0.00041409,30]
[327019719,1715719063508,338.2489042,0.00043935,30]
[327019720,1715719063545,201.34910331,0.00042253,30]
[327019721,1715719063603,1181.31138844,0.00040578,30]
[327019722,1715719064004,338.2489042,0.00044216,30]
[327019723,1715719064042,201.34910331,0.00042321,30]
[327019724,1715719064146,1181.31138844,0.00041159,30]
[327019725,1715719064508,338.2489042,0.00045127,30]
[327019726,1715719064549,201.34910331,0.00042435,30]
[327019727,1715719064590,1000.0,0.00038904,120]
[327019728,1715719064642,1181.31138844,0.00043386,30]
[327019729,1715719065037,338.2489042,0.00045469,30]
[327019730,1715719065134,1181.31138844,0.00043622,30]
[327019731,1715719065163,201.34910331,0.00043172,30]
[327019732,1715719065686,1181.31138844,0.00044218,30]
[327019733,1715719065714,201.34910331,0.00044189,30]
[327019734,1715719066073,338.24890428,0.00046205,30]
[327019735,1715719066200,1181.31138844,0.00045473,30]
[327019736,1715719066255,828.76166245,0.0004023,30]
[327019737,1715719066703,1181.31138844,0.00045843,30]
[327019738,1715719066735,201.34910331,0.00044612,30]
[327019739,1715719066785,828.76166245,0.00040247,30]
[327019740,1715719067257,201.34910347,0.00045635,30]
[327019741,1715719067310,828.76166245,0.00040954,30]
[327019742,1715719067734,1181.31138853,0.00046338,30]
[327019743,1715719067819,828.76166245,0.00041825,30]
[327019744,1715719068318,828.76166245,0.00044878,30]
[327019745,1715719068821,168.2016,0.000356,30]
[327019746,1715719068858,828.76166257,0.00046336,30]
[327019747,1715719069842,2100.0,0.00046336,30]
[327019748,1715719069978,1531.93134579,0.0004,60]
[327019749,1715719070309,2500.0,0.00045,120]
[327019750,1715719071344,745.55713891,0.000448,120]
[327019751,1715719072231,258.04084443,0.00047158,60]
[327019752,1715719073023,33680.19275419,0.0005,30]
[327019753,1715719073458,1338.44343333,0.00047158,90]
[327019754,1715719075571,884.35603427,0.000389,30]
[327019755,1715719078039,516.05092025,0.00047158,30]
[327019756,1715719078839,500.0,0.00046027,30]
[327019757,1715719078894,972.0,0.00052055,30]
[327019758,1715719079137,500.0,0.00045205,30]
[327019759,1715719080457,500.0,0.00046575,30]
[327019760,1715719080657,500.0,0.00046027,30]
[327019761,1715719080751,500.0,0.00045753,30]
[327019762,1715719081927,215.64477092,0.00047158,30]
[327019763,1715719081999,500.0,0.00046027,30]
[327019764,1715719082199,500.0,0.00047123,30]
[327019765,1715719082306,500.0,0.00046575,30]
[327019766,1715719082615,2151.357,0.00046027,30]
[327019767,1715719083603,500.0,0.00046575,30]
[327019768,1715719083830,500.0,0.00047671,30]
[327019769,1715719085318,500.0,0.00047123,30]
[327019770,1715719085474,500.0,0.00048219,30]
[327019771,1715719087037,500.0,0.00047671,30]
[327019772,1715719087104,500.0,0.00048767,30]
[327019773,1715719087659,37854.5596984,0.00051014,120]
[327019774,1715719088212,258.04084443,0.00047158,60]
[327019775,1715719088751,600.0,0.00049315,90]
[327019776,1715719089874,437.07318846,0.00049,120]
[327019777,1715719090310,2500.0,0.00045,120]
[327019778,1715719091394,699.2119247,0.00047158,90]
[327019779,1715719092999,33680.19275419,0.0005,30]
[327019780,1715719093576,1029.45516954,0.000389,30]
[327019781,1715719097838,1000.0,0.00049,120]
[327019782,1715719101328,267.82629241,0.00046575,120]
[327019783,1715719103541,1000.0,0.00049,120]
[327019784,1715719106307,2500.0,0.00045,120]
[327019785,1715719106822,500.0,0.00046027,30]
[327019786,1715719106922,18140.63967667,0.00051,120]
[327019787,1715719109764,1000.0,0.00049,120]
[327019788,1715719111587,-1247.6171514,0.00010147,2]
[327019789,1715719111613,-5271.09430616,0.00010147,2]
[327019790,1715719111640,-162.50319315,0.00010148,2]
[327019791,1715719111665,-2184.98248906,0.00010148,2]
[327019792,1715719111691,-8364.82190366,0.0001015,2]
[327019793,1715719111717,-158.03691831,0.00010151,2]
[327019794,1715719111743,-688.0,0.00010152,2]
[327019795,1715719111769,-6440.78,0.00010164,2]
[327019796,1715719111795,-154.01,0.00010228,2]
[327019797,1715719111822,-154.01,0.00010276,2]
[327019798,1715719111852,-2220.98098245,0.00010305,2]
[327019799,1715719111878,-685.85275568,0.00010306,2]
[327019800,1715719111906,-159.63814162,0.00010308,2]
[327019801,1715719111932,-154.01,0.00010325,2]
[327019802,1715719111958,-154.01,0.00010373,2]
[327019803,1715719111993,-5560.28685864,0.00010402,2]
[327019804,1715719112027,-424.11,0.00010411,2]
[327019805,1715719112054,-154.01,0.00010422,2]
[327019806,1715719112081,-154.01,0.0001047,2]
[327019807,1715719112108,-154.01,0.00010519,2]
[327019808,1715719112135,-154.01,0.00010567,2]
[327019809,1715719112161,-154.01,0.00010615,2]
[327019810,1715719112188,-154.01,0.00010664,2]
[327019811,1715719112215,-154.01,0.00010712,2]
[327019812,1715719112241,-154.01,0.00010761,2]
[327019813,1715719112266,-150.0,0.00010958,2]
[327019814,1715719112292,-300.0,0.00010958,2]
[327019815,1715719112317,-9133.17529987,0.00010959,2]
[327019816,1715719114895,26944.15420336,0.0005,30]
[327019817,1715719114982,1000.0,0.00049,120]
[327019818,1715719120743,1000.0,0.00049,120]
[327019819,1715719126358,1000.0,0.00049,120]
[327019820,1715719128313,2500.0,0.00045,120]
[327019821,1715719130895,26944.15420336,0.0005,30]
[327019822,1715719132083,1000.0,0.00049,120]
[327019823,1715719137712,1000.0,0.00049,120]
[327019824,1715719143357,454.9839,0.00049,120]
[327019825,1715719144331,2500.0,0.00045,120]
[327019826,1715719150865,258.04084443,0.00049,60]
[327019827,1715719150902,26944.15420336,0.0005,30]
[327019828,1715719152305,484.0269,0.00041888,30]
[327019829,1715719152551,516.05092025,0.00049,30]
[327019830,1715719164733,334.05042661,0.00049,60]
[327019831,1715719168312,2500.0,0.00045,120]
[327019832,1715719168556,516.05092025,0.00049,30]
[327019833,1715719170904,26944.15420336,0.0005,30]
[327019834,1715719186320,2500.0,0.00045,120]
[327019835,1715719188544,384.81165831,0.00049,30]
[327019836,1715719190767,-162.50319315,0.00010618,2]
[327019837,1715719190792,-7522.04392736,0.00010619,7]
[327019838,1715719190817,-500.0,0.000108,3]
[327019839,1715719190843,-15.45287949,0.000109,3]
[327019840,1715719192922,26944.15420336,0.0005,30]
[327019841,1715719204229,20000.0,0.0005,30]
[327019842,1715719206325,2500.0,0.00045,120]
[327019843,1715719208908,26944.15420336,0.0005,30]
[327019844,1715719217743,-5271.09430616,0.00010618,2]
[327019845,1715719217770,-984.54712051,0.000109,3]
[327019846,1715719217795,-744.35857333,0.00010959,2]
[327019847,1715719220617,2127.427582,0.00050137,30]
[327019848,1715719222904,26952.06258979,0.0005,30]
[327019849,1715719222952,2127.427582,0.00050959,30]
[327019850,1715719224099,2127.427582,0.00051781,30]
[327019851,1715719224324,2500.0,0.00045,120]
[327019852,1715719244340,2500.0,0.00045,120]
[327019853,1715719246618,310.56,0.00030027,30]
[327019854,1715719246974,310.56,0.00033143,30]
[327019855,1715719247346,310.56,0.00036258,30]
[327019856,1715719247715,310.56,0.00039374,30]
[327019857,1715719248089,310.56,0.00042489,30]
[327019858,1715719248474,310.56,0.00045605,90]
[327019859,1715719248850,310.56,0.0004872,90]
[327019860,1715719249319,310.56,0.00051836,90]
[327019861,1715719249494,15614.75256299,0.00045,30]
[327019862,1715719262331,2119.47391534,0.00045,120]
[327019864,1715719273099,200.0,0.00052,30]
[327019865,1715719276998,200.0,0.00052,30]
[327019866,1715719317572,1035.0,0.00049452,30]
[327019867,1715719318449,1000.0,0.00051999,120]
[327019868,1715719328101,384.20668852,0.00052,30]
[327019869,1715719328631,22533.90134374,0.0005,120]
[327019870,1715719330482,682.80827706,0.00052,30]
[327019871,1715719337176,166.66666666,0.00042404,30]
[327019872,1715719337375,159.94267141,0.00040296,30]
[327019873,1715719337532,170.36685245,0.0004417,30]
[327019874,1715719337725,166.66666666,0.00043292,30]
[327019875,1715719337870,159.94267141,0.00043734,30]
[327019876,1715719337949,166.66666666,0.00042497,30]
[327019877,1715719338034,170.36685249,0.00046414,30]
[327019878,1715719338190,166.6666667,0.00046301,30]
[327019879,1715719338392,159.94267141,0.00043766,30]
[327019880,1715719338445,166.6666667,0.00046298,30]
[327019881,1715719338612,160.42618737,0.00045571,30]
[327019882,1715719338699,1035.0,0.0004698,30]
[327019883,1715719338899,159.94267141,0.00045,30]
[327019884,1715719339356,160.42618737,0.00045647,30]
[327019885,1715719339431,159.94267141,0.00045165,30]
[327019886,1715719339748,164.18792334,0.00046213,30]
[327019887,1715719339940,159.94267141,0.00046346,30]
[327019888,1715719340395,160.4261874,0.00045844,30]
[327019889,1715719342028,169.31584769,0.00044682,30]
[327019890,1715719342320,172.42344121,0.00041333,30]
[327019891,1715719342562,169.31584771,0.0004653,30]
[327019892,1715719342807,172.42344121,0.000441,30]
[327019893,1715719343137,166.66666666,0.00040951,30]
[327019894,1715719343487,234.78426095,0.00046389,30]
[327019895,1715719343661,166.6666667,0.00046093,30]
[327019896,1715719344092,256.13779235,0.00052,30]
[327019897,1715719344476,682.80827706,0.00052,30]
[327019898,1715719344538,167.59459456,0.00045074,30]
[327019899,1715719345020,167.81751752,0.00040091,30]
[327019900,1715719345103,167.91596977,0.00042929,30]
[327019901,1715719345316,182.88033139,0.00045725,30]
[327019902,1715719346505,153.12970745,0.00040975,30]
[327019903,1715719346578,170.99320415,0.00046013,30]
[327019904,1715719346755,157.15908436,0.00041623,30]
[327019905,1715719347002,153.12970745,0.0004156,30]
[327019906,1715719347275,157.15908436,0.00045325,30]
[327019907,1715719347393,169.00998554,0.00042045,30]
[327019908,1715719347532,153.12970745,0.0004417,30]
[327019909,1715719348039,1604.81167017,0.00040048,30]
[327019910,1715719348070,169.00998554,0.00043303,30]
[327019911,1715719348098,215.87526692,0.00040582,30]
[327019912,1715719348192,153.12970745,0.00044239,30]
[327019913,1715719348391,1604.81167017,0.00041385,30]
[327019914,1715719348421,169.00998558,0.00045499,30]